Workbook

Sheet Title
C1: Calculation practice activities to accompany CHAPTER 9
C3: Social Statistics in Action: A Canadian Introduction
C4: Andrea M. Noack
C6: Oxford University Press, 2018
C8: For more information, visit:
C9: https://www.oupcanada.com/catalog/9780199015214.html

Sheet Lambda (2x2)
B1: PRACTICE CALCULATING LAMBDA: 2x2 CROSSTABULATION
B3: Calculate lambda for this crosstabulation. Keep two decimal places throughout your calculations. To check your answer, click on the 'Show Answer' button.
B6: FREQUENCIES
D7: Independent Variable | H7: Lambda: | I7: hidden
D8: Group 1 | E8: Group 2 | F8: Total
B9: Dependent Variable | C9: Attribute 1 | D9: 13 | E9: 3 | F9: 16 | H9: Need some help?
C10: Attribute 2 | D10: 12 | E10: 5 | F10: 17
C11: Total | D11: 25 | E11: 8 | F11: 33
B13: LAMBDA CALCULATIONS
B14: E1
C15: = 33 - 17
C16: = ?
B17: E2
C18: = (25 - 13) + (8 - 5)
C19: = ? + ?
C20: = ?
B21: Lambda
C22: = (16 - 15) ÷ 16
C23: = ? ÷ ?
C24: = ?

Sheet Lambda (3x3)
B1: PRACTICE CALCULATING LAMBDA: 3x3 CROSSTABULATION
B3: Calculate lambda for this crosstabulation. Keep two decimal places throughout your calculations. To check your answer, click on the 'Show Answer' button.
B6: FREQUENCIES
D7: Independent Variable | I7: Lambda: | J7: hidden
D8: Group 1 | E8: Group 2 | F8: Group 3 | G8: Total | I8: Need some help?
B9: Dependent Variable | C9: Attribute 1 | D9: 9 | E9: 13 | F9: 8 | G9: 30
C10: Attribute 2 | D10: 16 | E10: 11 | F10: 7 | G10: 34
C11: Attribute 3 | D11: 20 | E11: 20 | F11: 3 | G11: 43
C12: Total | D12: 45 | E12: 44 | F12: 18 | G12: 107
B14: LAMBDA CALCULATIONS
B15: E1
C16: = 107 - 43
C17: = ?
B18: E2
C19: = (45 - 20) + (44 - 20) + (18 - 8)
C20: = ? + ? + ?
C21: = ?
B22: Lambda
C23: = (64 - 59) ÷ 64
C24: = ? ÷ ?
C25: = ?

Sheet Gamma (2x2)
B1: PRACTICE CALCULATING GAMMA: 2x2 CROSSTABULATION
B3: Calculate gamma for this crosstabulation. You may also want to find the total number of pairs of cases and the number of tied pairs of cases. Keep two decimal places throughout your calculations. To check your answers, click on the 'Show Answers' button.
B6: FREQUENCIES | H6: Gamma: | I6: hidden
D7: Independent Variable
D8: Low Group | E8: High Group | F8: Total | H8: Total Number of Pairs of Cases: | I8: hidden
B9: Dependent Variable | C9: Low Attribute | D9: 13 | E9: 29 | F9: 42 | H9: Number of Tied Pairs of Cases: | I9: hidden
C10: High Attribute | D10: 20 | E10: 15 | F10: 35 | H10: Need some help?
C11: Total | D11: 33 | E11: 44 | F11: 77
B13: GAMMA CALCULATIONS
B14: Concordant pairs of cases | D14: = 13 x 15
D15: = ?
B16: Discordant pairs of cases | D16: = 29 x 20
D17: = ?
B18: Gamma
D19: = (195 - 580) ÷ (195 + 580)
D20: = ? ÷ ?
D21: = ?
B22: Total number of pairs of cases
D23: = [77 x (77 - 1)] ÷ 2
D24: = (? x ?) ÷ ?
D25: = ? ÷ ?
D26: = ?
B27: Number of tied pairs of cases
D28: = 2926 - 195 - 580
D29: = ?

Sheet Gamma (3x3)
B1: PRACTICE CALCULATING GAMMA: 3x3 CROSSTABULATION
B3: Calculate gamma for this crosstabulation. You may also want to find the total number of pairs of cases and the number of tied pairs of cases. Keep two decimal places throughout your calculations. To check your answers, click on the 'Show Answers' button.
B6: FREQUENCIES | I6: Gamma: | J6: hidden
D7: Independent Variable
D8: Low Group | E8: Middle Group | F8: High Group | G8: Total | I8: Total Number of Pairs of Cases: | J8: hidden
B9: Dependent Variable | C9: Low Attribute | D9: 1 | E9: 13 | F9: 18 | G9: 32 | I9: Number of Tied Pairs of Cases: | J9: hidden
C10: Middle Attribute | D10: 2 | E10: 19 | F10: 14 | G10: 35 | I10: Need some help?
C11: High Attribute | D11: 3 | E11: 28 | F11: 7 | G11: 38
C12: Total | D12: 6 | E12: 60 | F12: 39 | G12: 105
B14: GAMMA CALCULATIONS
B15: Concordant pairs of cases | D15: = [1 x (19 + 14 + 28 + 7)] + [13 x (14 + 7)] + [2 x (28 + 7)] + [19 x 7]
D16: = (? x ?) + (? x ?) + (? x ?) + (? x ?)
D17: = ? + ? + ? + ?
D18: = ?
B19: Discordant pairs of cases | D19: = [18 x (2 + 19 + 3 + 28)] + [13 x (2 + 3)] + [14 x (3 + 28)] + [19 x 3]
D20: = (? x ?) + (? x ?) + (? x ?) + (? x ?)
D21: = ? + ? + ? + ?
D22: = ?
B23: Gamma
D24: = (544 - 1492) ÷ (544 + 1492)
D25: = ? ÷ ?
D26: = ?
B27: Total number of pairs of cases
D28: = [105 x (105 - 1)] ÷ 2
D29: = (? x ?) ÷ ?
D30: = ? ÷ ?
D31: = ?
B32: Number of tied pairs of cases
D33: = 5460 - 544 - 1492
D34: = ?

Sheet Chi-square (2x2)
B1: PRACTICE CALCULATING EXPECTED FREQUENCIES AND THE CHI-SQUARE STATISTIC: 2x2 CROSSTABULATION
B3: Calculate the expected frequencies for each of the yellow highlighted cells. Then, calculate the chi-square statistic. Keep two decimal places throughout your calculations. To check your answers, click on the 'Show Expected Frequencies' and/or 'Show Chi-Square statistic' buttons.
B6: OBSERVED FREQUENCIES (fo)
D7: Independent Variable | H7: Degrees of freedom: | I7: 1
D8: Group 1 | E8: Group 2 | F8: Total | H8: Chi-square statistic: | I8: hidden
B9: Dependent Variable | C9: Attribute 1 | D9: 17 | E9: 16 | F9: 33
C10: Attribute 2 | D10: 6 | E10: 17 | F10: 23 | H10: If the chi-square statistic is higher than 3.84, then p<0.05
C11: Total | D11: 23 | E11: 33 | F11: 56
B13: EXPECTED FREQUENCIES (fe)
D14: Independent Variable | H14: Need some help?
D15: Group 1 | E15: Group 2 | F15: Total
B16: Dependent Variable | C16: Attribute 1 | D16: hidden | E16: hidden | F16: 33
C17: Attribute 2 | D17: hidden | E17: hidden | F17: 23
C18: Total | D18: 23 | E18: 33 | F18: 56
B20: EXPECTED FREQUENCY CALCULATIONS
D21: Independent Variable
D22: Group 1 | E22: Group 2 | F22: Total
B23: Dependent Variable | C23: Attribute 1 | D23: (33 x 23) ÷ 56 = ? | E23: (33 x 33) ÷ 56 = ? | F23: 33
C24: Attribute 2 | D24: (23 x 23) ÷ 56 = ? | E24: (23 x 33) ÷ 56 = ? | F24: 23
C25: Total | D25: 23 | E25: 33 | F25: 56
B27: CHI-SQUARE STATISTIC CALCULATIONS
B28: Cell | D28: Observed Frequencies | E28: Expected Frequencies | F28: Observed-Expected Frequencies | H28: (Observed-Expected)2 | I28: (Observed-Expected)2 ÷ Expected
B29: Group 1, Attribute 1 | D29: 17 | E29: 13.55 | F29: 17 - 13.55 = ? | H29: 3.45 x 3.45 = ? | I29: 11.9 ÷ 13.55 = ?
B30: Group 1, Attribute 2 | D30: 6 | E30: 9.45 | F30: 6 - 9.45 = ? | H30: -3.45 x -3.45 = ? | I30: 11.9 ÷ 9.45 = ?
B31: Group 2, Attribute 1 | D31: 16 | E31: 19.45 | F31: 16 - 19.45 = ? | H31: -3.45 x -3.45 = ? | I31: 11.9 ÷ 19.45 = ?
B32: Group 2, Attribute 2 | D32: 17 | E32: 13.55 | F32: 17 - 13.55 = ? | H32: 3.45 x 3.45 = ? | I32: 11.9 ÷ 13.55 = ?
I33: Column Sum (Σ) | K33: = ?

Sheet Chi-square (3x3)
B1: PRACTICE CALCULATING EXPECTED FREQUENCIES AND THE CHI-SQUARE STATISTIC: 3x3 CROSSTABULATION
B3: Calculate the expected frequencies for each of the yellow highlighted cells. Then, calculate the chi-square statistic. Keep two decimal places throughout your calculations. To check your answers, click on the 'Show Expected Frequencies' and/or 'Show Chi-Square statistic' buttons.
B6: OBSERVED FREQUENCIES (fo)
D7: Independent Variable | I7: Degrees of freedom: | J7: 4
D8: Group 1 | E8: Group 2 | F8: Group 3 | G8: Total | I8: Chi-Square statistic: | J8: hidden
B9: Dependent Variable | C9: Attribute 1 | D9: 18 | E9: 5 | F9: 1 | G9: 24
C10: Attribute 2 | D10: 6 | E10: 20 | F10: 17 | G10: 43 | I10: If the chi-square statistic is higher than 9.49, p<0.05
C11: Attribute 3 | D11: 3 | E11: 20 | F11: 8 | G11: 31
C12: Total | D12: 27 | E12: 45 | F12: 26 | G12: 98
B14: EXPECTED FREQUENCIES (fe)
D15: Independent Variable
D16: Group 1 | E16: Group 2 | F16: Group 3 | G16: Total | I16: Need some help?
B17: Dependent Variable | C17: Attribute 1 | D17: hidden | E17: hidden | F17: hidden | G17: 24
C18: Attribute 2 | D18: hidden | E18: hidden | F18: hidden | G18: 43
C19: Attribute 3 | D19: hidden | E19: hidden | F19: hidden | G19: 31
C20: Total | D20: 27 | E20: 45 | F20: 26 | G20: 98
B22: EXPECTED FREQUENCY CALCULATIONS
D23: Independent Variable
D24: Group 1 | E24: Group 2 | F24: Group 3 | G24: Total
B25: Dependent Variable | C25: Attribute 1 | D25: (24 x 27) ÷ 98 = ? | E25: (24 x 45) ÷ 98 = ? | F25: (24 x 26) ÷ 98 = ? | G25: 24
C26: Attribute 2 | D26: (43 x 27) ÷ 98 = ? | E26: (43 x 45) ÷ 98 = ? | F26: (43 x 26) ÷ 98 = ? | G26: 43
C27: Attribute 3 | D27: (31 x 27) ÷ 98 = ? | E27: (31 x 45) ÷ 98 = ? | F27: (31 x 26) ÷ 98 = ? | G27: 31
C28: Total | D28: =D20 -> 35 | E28: =E20 -> 27 | F28: 26 | G28: 98
B30: CHI-SQUARE STATISTIC CALCULATIONS
B31: Cell | D31: Observed Frequencies | E31: Expected Frequencies | F31: Observed-Expected Frequencies | H31: (Observed-Expected)2 | J31: (Observed-Expected)2 ÷ Expected
B32: Group 1, Attribute 1 | D32: 18 | E32: 6.61 | F32: 18 - 6.61 = ? | H32: 11.39 x 11.39 = ? | J32: 129.73 ÷ 6.61 = ?
B33: Group 1, Attribute 2 | D33: 6 | E33: 11.85 | F33: 6 - 11.85 = ? | H33: -5.85 x -5.85 = ? | J33: 34.22 ÷ 11.85 = ?
B34: Group 1, Attribute 3 | D34: 3 | E34: 8.54 | F34: 3 - 8.54 = ? | H34: -5.54 x -5.54 = ? | J34: 30.69 ÷ 8.54 = ?
B35: Group 2, Attribute 1 | D35: 5 | E35: 11.02 | F35: 5 - 11.02 = ? | H35: -6.02 x -6.02 = ? | J35: 36.24 ÷ 11.02 = ?
B36: Group 2, Attribute 2 | D36: 20 | E36: 19.74 | F36: 20 - 19.74 = ? | H36: 0.26 x 0.26 = ? | J36: 0.07 ÷ 19.74 = ?
B37: Group 2, Attribute 3 | D37: 20 | E37: 14.23 | F37: 20 - 14.23 = ? | H37: 5.77 x 5.77 = ? | J37: 33.29 ÷ 14.23 = ?
B38: Group 3, Attribute 1 | D38: 1 | E38: 6.37 | F38: 1 - 6.37 = ? | H38: -5.37 x -5.37 = ? | J38: 28.84 ÷ 6.37 = ?
B39: Group 3, Attribute 2 | D39: 17 | E39: 11.41 | F39: 17 - 11.41 = ? | H39: 5.59 x 5.59 = ? | J39: 31.25 ÷ 11.41 = ?
B40: Group 3, Attribute 3 | D40: 8 | E40: 8.22 | F40: 8 - 8.22 = ? | H40: -0.22 x -0.22 = ? | J40: 0.05 ÷ 8.22 = ?
J41: Column Sum (Σ) | L41: = ?

Sheet Phi
B1: PRACTICE CALCULATING PHI
B3: Phi is calculated for 2 x 2 crosstabulations. Use the chi-square statistic in the yellow highlighed cell to calculate phi for this crosstabulation. Keep two decimal places throughout your calculations. To check your answer, click on the 'Show Answer' button.
B6: OBSERVED FREQUENCIES | H6: Chi-Square statistic (χ2): | I6: 1.8
D7: Independent Variable | H7: Phi: | I7: hidden
D8: Group 1 | E8: Group 2 | F8: Total
B9: Dependent Variable | C9: Attribute 1 | D9: 10 | E9: 12 | F9: 22
C10: Attribute 2 | D10: 12 | E10: 6 | F10: 18
C11: Total | D11: 22 | E11: 18 | F11: 40
B13: PHI CALCULATIONS
B14: Phi
C15: = square root of (1.8 ÷ 40)
C16: = square root of ?
C17: = ?

Sheet Cramér's V
B1: PRACTICE CALCULATING CRAMÉR'S V
B3: Cramér's V is calculated for crosstabulations with more than two rows or columns. Use the chi-square statistic in the yellow highlighted cell to calculate Cramér's V for this crosstabulation. Keep two decimal places throughout your calculations. To check your answer, click on the 'Show Answer' button.
B6: OBSERVED FREQUENCIES | I6: Chi-Square statistic (χ2): | J6: 14.86
D7: Independent Variable | I7: Cramér's V: | J7: hidden
D8: Group 1 | E8: Group 2 | F8: Group 3 | G8: Total | I8: Need some help?
B9: Dependent Variable | C9: Attribute 1 | D9: 1 | E9: 13 | F9: 7 | G9: 21
C10: Attribute 2 | D10: 13 | E10: 18 | F10: 5 | G10: 36
C11: Attribute 3 | D11: 20 | E11: 13 | F11: 16 | G11: 49
C12: Total | D12: 34 | E12: 44 | F12: 28 | G12: 106
B14: CRAMÉR'S V CALCULATIONS
B15: Cramér's V
C16: = square root of {14.86 ÷ [106 x (3-1)]}
C17: = square root of [? ÷ (? x ?)]
C18: = square root of (? ÷ ?)
C19: = square root of ?
C20: = ?

Sheet Gamma (2x2)-A (hidden)
B1: PRACTICE CALCULATING GAMMA: 2x2 CROSSTABULATION
B6: FREQUENCIES | H6: Gamma | I6: =G21 -> -0.5
D7: Independent Variable
D8: Low Group | E8: High Group | F8: Total | H8: Total # of Pairs | I8: =G26 -> 2926
B9: Dependent Variable | C9: Low Attribute | D9: 13 | E9: 29 | F9: 42 | H9: Number of Tied Pairs | I9: =G29 -> 2151 | K9: =RANDBETWEEN(1,20) -> 17 | L9: =RANDBETWEEN(1,30) -> 12 | M9: =SUM(K9:L9) -> 29
C10: High Attribute | D10: 20 | E10: 15 | F10: 35 | K10: =RANDBETWEEN(1,30) -> 15 | L10: =RANDBETWEEN(1,20) -> 16 | M10: =SUM(K10:L10) -> 31
C11: Total | D11: 33 | E11: 44 | F11: 77 | H11: Need some help? | K11: =SUM(K9:K10) -> 32 | L11: =SUM(L9:L10) -> 28 | M11: =SUM(K9:L10) -> 60
B13: GAMMA CALCULATIONS
B14: Concordant pairs of cases | D14: =CONCATENATE("'= ",D9," x ",E10) -> '= 13 x 15
D15: =CONCATENATE("'= ",G15) -> '= 195 | G15: =D9*E10 -> 195
B16: Discordant pairs of cases | D16: =CONCATENATE("'= ",E9," x ",D10) -> '= 29 x 20
D17: =CONCATENATE("'= ",G17) -> '= 580 | G17: =E9*D10 -> 580
B18: Gamma
D19: =CONCATENATE("'= (",G15," - ",G17,") ÷ (",G15," + ",G17,")") -> '= (195 - 580) ÷ (195 + 580)
D20: =CONCATENATE("'= ",G20," ÷ ",H20) -> '= -385 ÷ 775 | G20: =G15-G17 -> -385 | H20: =G15+G17 -> 775
D21: =CONCATENATE("'= ",G21) -> '= -0.5 | G21: =ROUND(G20/H20,2) -> -0.5
B22: Total # of pairs of cases
D23: =CONCATENATE("'= [",F11," x (",F11," - 1)] ÷ 2") -> '= [77 x (77 - 1)] ÷ 2
D24: =CONCATENATE("'= (",F11," x ",G24,") ÷ 2") -> '= (77 x 76) ÷ 2 | G24: =F11-1 -> 76
D25: =CONCATENATE("'= ",G25," ÷ 2") -> '= 5852 ÷ 2 | G25: =F11*G24 -> 5852
D26: =CONCATENATE("'= ",G26) -> '= 2926 | G26: =G25/2 -> 2926
B27: Number of tied pairs of cases | D27: = total pairs - concordant pairs - discordant pairs
D28: =CONCATENATE("'= ",G26," - ",G15," - ",G17) -> '= 2926 - 195 - 580
D29: =CONCATENATE("'= ",G29) -> '= 2151 | G29: =G26-G15-G17 -> 2151

Sheet Gamma (3x3)-A (hidden)
B1: PRACTICE CALCULATING GAMMA: 2x2 CROSSTABULATION
B6: FREQUENCIES | I6: Gamma | J6: =G26 -> -0.47
D7: Independent Variable
D8: Low Group | E8: Middle Group | F8: High Group | G8: Total | I8: Total # of Pairs | J8: =G31 -> 5460
B9: Dependent Variable | C9: Low Attribute | D9: 1 | E9: 13 | F9: 18 | G9: 32 | I9: Number of Tied Pairs | J9: =G34 -> 3424 | K9: =RANDBETWEEN(1,20) -> 8 | L9: =RANDBETWEEN(1,20) -> 2 | M9: =RANDBETWEEN(1,30) -> 1 | N9: =SUM(K9:M9) -> 11
C10: Middle Attribute | D10: 2 | E10: 19 | F10: 14 | G10: 35 | K10: =RANDBETWEEN(1,30) -> 17 | L10: =RANDBETWEEN(1,20) -> 3 | M10: =RANDBETWEEN(1,20) -> 3 | N10: =SUM(K10:M10) -> 23
C11: High Attribute | D11: 3 | E11: 28 | F11: 7 | G11: 38 | I11: Need some help? | K11: =RANDBETWEEN(1,20) -> 17 | L11: =RANDBETWEEN(1,30) -> 30 | M11: =RANDBETWEEN(1,20) -> 18 | N11: 65
C12: Total | D12: 6 | E12: 60 | F12: 39 | G12: 105 | K12: =SUM(K9:K11) -> 42 | L12: =SUM(L9:L11) -> 35 | M12: 22 | N12: =SUM(K9:M11) -> 99
B14: GAMMA CALCULATIONS
B15: Concordant pairs of cases | D15: =CONCATENATE("'= [",D9," x (",E10," + ",F10," + ",E11," + ",F11,")] + [",E9," x (",F10," + ",F11,")] + [",D10," x (",E11," + ",F11,")] + [",E10," x ",F11,"]") -> '= [1 x (19 + 14 + 28 + 7)] + [13 x (14 + 7)] + [2 x (28 + 7)] + [19 x 7]
D16: =CONCATENATE("'= (",D9," x ",G16,") + (",E9," x ",H16,") + (",D10," x ",I16,") + (",E10," x ",F11,")") -> '= (1 x 68) + (13 x 21) + (2 x 35) + (19 x 7) | G16: =SUM(E10:F11) -> 68 | H16: =SUM(F10:F11) -> 21 | I16: =SUM(E11:F11) -> 35
D17: =CONCATENATE("'= ",G17," + ",H17," + ",I17," + ",J17) -> '= 68 + 273 + 70 + 133 | G17: =D9*G16 -> 68 | H17: =E9*H16 -> 273 | I17: =D10*I16 -> 70 | J17: =E10*F11 -> 133
D18: =CONCATENATE("'= ",G18) -> '= 544 | G18: =SUM(G17:J17) -> 544
B19: Discordant pairs of cases | D19: =CONCATENATE("'= [",F9," x (",D10," + ",E10," + ",D11," + ",E11,")] + [",E9," x (",D10," + ",D11,")] + [",F10," x (",D11," + ",E11,")] + [",E10," x ",D11,"]") -> '= [18 x (2 + 19 + 3 + 28)] + [13 x (2 + 3)] + [14 x (3 + 28)] + [19 x 3]
D20: =CONCATENATE("'= (",F9," x ",G20,") + (",E9," x ",H20,") + (",F10," x ",I20,") + (",E10," x ",D11,")") -> '= (18 x 52) + (13 x 5) + (14 x 31) + (19 x 3) | G20: =SUM(D10:E11) -> 52 | H20: =SUM(D10:D11) -> 5 | I20: =SUM(D11:E11) -> 31
D21: =CONCATENATE("'= ",G21," + ",H21," + ",I21," + ",J21) -> '= 936 + 65 + 434 + 57 | G21: =F9*G20 -> 936 | H21: =E9*H20 -> 65 | I21: =F10*I20 -> 434 | J21: =E10*D11 -> 57
D22: =CONCATENATE("'= ",G22) -> '= 1492 | G22: =SUM(G21:J21) -> 1492
B23: Gamma
D24: =CONCATENATE("'= (",G18," - ",G22,") ÷ (",G18," + ",G22,")") -> '= (544 - 1492) ÷ (544 + 1492)
D25: =CONCATENATE("'= ",G25," ÷ ",H25) -> '= -948 ÷ 2036 | G25: =G18-G22 -> -948 | H25: =G18+G22 -> 2036
D26: =CONCATENATE("'= ",G26) -> '= -0.47 | G26: =ROUND(G25/H25,2) -> -0.47
B27: Total # of pairs of cases
D28: =CONCATENATE("'= [",G12," x (",G12," - 1)] ÷ 2") -> '= [105 x (105 - 1)] ÷ 2
D29: =CONCATENATE("'= (",G12," x ",G29,") ÷ 2") -> '= (105 x 104) ÷ 2 | G29: =G12-1 -> 104
D30: =CONCATENATE("'= ",G30," ÷ 2") -> '= 10920 ÷ 2 | G30: =G12*G29 -> 10920
D31: =CONCATENATE("'= ",G31) -> '= 5460 | G31: =G30/2 -> 5460
B32: Number of tied pairs of cases | D32: = total pairs - concordant pairs - discordant pairs
D33: =CONCATENATE("'= ",G31," - ",G18," - ",G22) -> '= 5460 - 544 - 1492
D34: =CONCATENATE("'= ",G34) -> '= 3424 | G34: =G31-G18-G22 -> 3424

Sheet Lambda (2x2)-A (hidden)
B1: PRACTICE CALCULATING LAMBDA
B6: OBSERVED FREQUENCIES
D7: Independent Variable | H7: Lambda | I7: =F24 -> 0.06
D8: Group 1 | E8: Group 2 | F8: Total
B9: Dependent Variable | C9: Attribute 1 | D9: 13 | E9: 3 | F9: 16 | H9: Need some help? | K9: =RANDBETWEEN(1,20) -> 15 | L9: =RANDBETWEEN(1,30) -> 5 | M9: =SUM(K9:L9) -> 20
C10: Attribute 2 | D10: 12 | E10: 5 | F10: 17 | K10: =RANDBETWEEN(1,30) -> 16 | L10: =RANDBETWEEN(1,20) -> 17 | M10: =SUM(K10:L10) -> 33
C11: Total | D11: 25 | E11: 8 | F11: 33 | K11: =SUM(K9:K10) -> 31 | L11: =SUM(L9:L10) -> 22 | M11: =SUM(K9:L10) -> 53
B13: LAMBDA CALCULATIONS
B14: E1
C15: =CONCATENATE("'= ",F11," - ",F15) -> '= 33 - 17 | F15: =MAX(F9:F10) -> 17
C16: =CONCATENATE("'= ",F16) -> '= 16 | F16: =F11-F15 -> 16
B17: E2
C18: =CONCATENATE("'= (",D11," - ",F18,") + (",E11," - ",G18,")") -> '= (25 - 13) + (8 - 5) | F18: =MAX(D9:D10) -> 13 | G18: =MAX(E9:E10) -> 5
C19: =CONCATENATE("'= ",F19," + ",G19) -> '= 12 + 3 | F19: =D11-F18 -> 12 | G19: =E11-G18 -> 3
C20: =CONCATENATE("'= ",F20) -> '= 15 | F20: =F19+G19 -> 15
B21: Lambda
C22: =CONCATENATE("'= (",F16," - ",F20,") ÷ ",F16) -> '= (16 - 15) ÷ 16
C23: =CONCATENATE("'= ",F23," ÷ ",F16) -> '= 1 ÷ 16 | F23: =F16-F20 -> 1
C24: =CONCATENATE("'= ",F24) -> '= 0.06 | F24: =ROUND(F23/F16,2) -> 0.06

Sheet Lambda (3x3)-A (hidden)
B1: PRACTICE CALCULATING LAMBDA
B6: OBSERVED FREQUENCIES
D7: Independent Variable | I7: Lambda | J7: =F25 -> 0.08
D8: Group 1 | E8: Group 2 | G8: Total
B9: Dependent Variable | C9: Attribute 1 | D9: 9 | E9: 13 | F9: 8 | G9: 30 | I9: Need some help? | K9: =RANDBETWEEN(1,20) -> 15 | L9: =RANDBETWEEN(1,20) -> 20 | M9: =RANDBETWEEN(1,30) -> 29 | N9: =SUM(K9:M9) -> 64
C10: Attribute 2 | D10: 16 | E10: 11 | F10: 7 | G10: 34 | K10: =RANDBETWEEN(1,30) -> 14 | L10: =RANDBETWEEN(1,20) -> 15 | M10: =RANDBETWEEN(1,20) -> 11 | N10: =SUM(K10:M10) -> 40
D11: 20 | E11: 20 | F11: 3 | G11: 43 | K11: =RANDBETWEEN(1,20) -> 2 | L11: =RANDBETWEEN(1,30) -> 30 | M11: =RANDBETWEEN(1,20) -> 3 | N11: 35
C12: Total | D12: 45 | E12: 44 | F12: 18 | G12: 107 | K12: =SUM(K9:K11) -> 31 | L12: =SUM(L9:L11) -> 65 | M12: 43 | N12: =SUM(K9:M11) -> 139
B14: LAMBDA CALCULATIONS
B15: E1
C16: =CONCATENATE("'= ",G12," - ",F16) -> '= 107 - 43 | F16: =MAX(G9:G11) -> 43
C17: =CONCATENATE("'= ",F17) -> '= 64 | F17: =G12-F16 -> 64
B18: E2
C19: =CONCATENATE("'= (",D12," - ",F19,") + (",E12," - ",G19,") + (",F12," - ",H19,")") -> '= (45 - 20) + (44 - 20) + (18 - 8) | F19: =MAX(D9:D11) -> 20 | G19: =MAX(E9:E11) -> 20 | H19: =MAX(F9:F11) -> 8
C20: =CONCATENATE("'= ",F20," + ",G20," + ",H20) -> '= 25 + 24 + 10 | F20: =D12-F19 -> 25 | G20: =E12-G19 -> 24 | H20: 10
C21: =CONCATENATE("'= ",F21) -> '= 59 | F21: =F20+G20+H20 -> 59
B22: Lambda
C23: =CONCATENATE("'= (",F17," - ",F21,") ÷ ",F17) -> '= (64 - 59) ÷ 64
C24: =CONCATENATE("'= ",F24," ÷ ",F17) -> '= 5 ÷ 64 | F24: =F17-F21 -> 5
C25: =CONCATENATE("'= ",F25) -> '= 0.08 | F25: =ROUND(F24/F17,2) -> 0.08

Sheet Chi-square (2x2)-A (hidden)
B1: PRACTICE CALCULATING EXPECTED FREQUENCIES AND THE CHI-SQUARE STATISTIC
B6: OBSERVED FREQUENCIES
D7: Independent Variable | H7: Degrees of freedom | I7: 1
D8: Group 1 | E8: Group 2 | F8: Total | H8: Chi-square statistic | I8: =N33 -> 3.63
B9: Dependent Variable | C9: Attribute 1 | D9: 17 | E9: 16 | F9: 33 | K9: =RANDBETWEEN(1,20) -> 16 | L9: =RANDBETWEEN(1,20) -> 4 | M9: =SUM(K9:L9) -> 20
C10: Attribute 2 | D10: 6 | E10: 17 | F10: 23 | K10: =RANDBETWEEN(1,20) -> 8 | L10: =RANDBETWEEN(1,20) -> 9 | M10: =SUM(K10:L10) -> 17
C11: Total | D11: 23 | E11: 33 | F11: 56 | K11: =SUM(K9:K10) -> 24 | L11: =SUM(L9:L10) -> 13 | M11: =SUM(K9:L10) -> 37
B13: EXPECTED FREQUENCIES
D14: Independent Variable | H14: Need some help?
D15: Group 1 | E15: Group 2 | F15: Total
B16: Dependent Variable | C16: Attribute 1 | D16: =K23 -> 13.55 | E16: =L23 -> 19.45 | F16: =F9 -> 33
C17: Attribute 2 | D17: =K24 -> 9.45 | E17: =L24 -> 13.55 | F17: =F10 -> 23
C18: Total | D18: 23 | E18: 33 | F18: 56
B20: EXPECTED FREQUENCY CALCULATIONS
D21: Independent Variable
D22: Group 1 | E22: Group 2 | F22: Total
B23: Dependent Variable | C23: Attribute 1 | D23: =CONCATENATE("(",F16," x ",D18,") ÷ ",$F$11," = ",K23) -> (33 x 23) ÷ 56 = 13.55 | E23: =CONCATENATE("(",F16," x ",E18,") ÷ ",$F$11," = ",L23) -> (33 x 33) ÷ 56 = 19.45 | F23: =F16 -> 33 | H23: =CONCATENATE("(",F16," x ",D18,") ÷ ",$F$11," = ?") -> (33 x 23) ÷ 56 = ? | I23: =CONCATENATE("(",F16," x ",E18,") ÷ ",$F$11," = ?") -> (33 x 33) ÷ 56 = ? | K23: =ROUND((F16*D18)/$F$18,2) -> 13.55 | L23: =ROUND((F16*E18)/$F$18,2) -> 19.45
C24: Attribute 2 | D24: =CONCATENATE("(",F17," x ",D18,") ÷ ",$F$11," = ",K24) -> (23 x 23) ÷ 56 = 9.45 | E24: =CONCATENATE("(",F17," x ",E18,") ÷ ",$F$11," = ",L24) -> (23 x 33) ÷ 56 = 13.55 | F24: =F17 -> 23 | H24: =CONCATENATE("(",F17," x ",D18,") ÷ ",$F$11," = ?") -> (23 x 23) ÷ 56 = ? | I24: =CONCATENATE("(",F17," x ",E18,") ÷ ",$F$11," = ?") -> (23 x 33) ÷ 56 = ? | K24: =ROUND((F17*D18)/$F$18,2) -> 9.45 | L24: =ROUND((F17*E18)/$F$18,2) -> 13.55
C25: Total | D25: =D18 -> 23 | E25: 33 | F25: =F18 -> 56
B27: CHI-SQUARE STATISTIC CALCULATIONS
B28: Cell | D28: Observed | E28: Expected | F28: Observed-Expected | H28: (Observed-Expected)2 | I28: (Observed-Expected)2 ÷ Expected
B29: Group 1, Attribute 1 | D29: =D9 -> 17 | E29: =K23 -> 13.55 | F29: =CONCATENATE(D29," - ",E29," = ",L29) -> 17 - 13.55 = 3.45 | H29: =CONCATENATE(L29," x ",L29," = ", M29) -> 3.45 x 3.45 = 11.9 | I29: =CONCATENATE(M29, " ÷ ",E29," = ",N29) -> 11.9 ÷ 13.55 = 0.88 | L29: =ROUND(D29-E29,2) -> 3.45 | M29: =(ROUND(L29*L29,2)) -> 11.9 | N29: =ROUND(M29/E29,2) -> 0.88
B30: Group 1, Attribute 2 | D30: =D10 -> 6 | E30: =K24 -> 9.45 | F30: =CONCATENATE(D30," - ",E30," = ",L30) -> 6 - 9.45 = -3.45 | H30: =CONCATENATE(L30," x ",L30," = ", M30) -> -3.45 x -3.45 = 11.9 | I30: =CONCATENATE(M30, " ÷ ",E30," = ",N30) -> 11.9 ÷ 9.45 = 1.26 | L30: =ROUND(D30-E30,2) -> -3.45 | M30: =(ROUND(L30*L30,2)) -> 11.9 | N30: =ROUND(M30/E30,2) -> 1.26
B31: Group 2, Attribute 1 | D31: =E9 -> 16 | E31: =L23 -> 19.45 | F31: 16 - 19.45 = -3.45 | H31: -3.45 x -3.45 = 11.9 | I31: 11.9 ÷ 19.45 = 0.61 | L31: -3.45 | M31: 11.9 | N31: 0.61
B32: Group 2, Attribute 2 | D32: =E10 -> 17 | E32: =L24 -> 13.55 | F32: 17 - 13.55 = 3.45 | H32: 3.45 x 3.45 = 11.9 | I32: 11.9 ÷ 13.55 = 0.88 | L32: 3.45 | M32: 11.9 | N32: 0.88
I33: Column Sum (χ2) | K33: =CONCATENATE("'= ",N33) -> '= 3.63 | N33: =SUM(N29:N32) -> 3.63
D35: =D29 -> 17 | E35: =E29 -> 13.55 | F35: =CONCATENATE(D29," - ",E29," = ?") -> 17 - 13.55 = ? | H35: =CONCATENATE(L29," x ",L29," = ?") -> 3.45 x 3.45 = ? | I35: =CONCATENATE(M29, " ÷ ",E29," = ?") -> 11.9 ÷ 13.55 = ?
D36: =D30 -> 6 | E36: 9.45 | F36: =CONCATENATE(D30," - ",E30," = ?") -> 6 - 9.45 = ? | H36: =CONCATENATE(L30," x ",L30," = ?") -> -3.45 x -3.45 = ? | I36: =CONCATENATE(M30, " ÷ ",E30," = ?") -> 11.9 ÷ 9.45 = ?
D37: =D31 -> 16 | E37: 19.45 | F37: 16 - 19.45 = ? | H37: -3.45 x -3.45 = ? | I37: 11.9 ÷ 19.45 = ?
D38: =D32 -> 17 | E38: 13.55 | F38: 17 - 13.55 = ? | H38: 3.45 x 3.45 = ? | I38: 11.9 ÷ 13.55 = ?

Sheet Chi-square (3x3)-A (hidden)
B1: PRACTICE CALCULATING EXPECTED FREQUENCIES AND THE CHI-SQUARE STATISTIC
B6: OBSERVED FREQUENCIES
D7: Independent Variable | I7: Degrees of freedom | J7: 1
D8: Group 1 | E8: Group 2 | F8: Group 3 | G8: Total | I8: Chi-square statistic | J8: =O41 -> 39.02
B9: Dependent Variable | C9: Attribute 1 | D9: 18 | E9: 5 | F9: 1 | G9: 24 | K9: =RANDBETWEEN(1,20) -> 8 | L9: =RANDBETWEEN(1,20) -> 11 | M9: 6 | N9: =SUM(K9:M9) -> 25
C10: Attribute 2 | D10: 6 | E10: 20 | F10: 17 | G10: 43 | K10: 5 | L10: 20 | M10: 7 | N10: =SUM(K10:M10) -> 32
C11: Attribute 3 | D11: 3 | E11: 20 | F11: 8 | G11: 31 | K11: 4 | L11: 7 | M11: 9 | N11: =SUM(K11:M11) -> 20
C12: Total | D12: 27 | E12: 45 | F12: 26 | G12: 98 | K12: =SUM(K9:K11) -> 17 | L12: =SUM(L9:L11) -> 38 | M12: =SUM(M9:M11) -> 22 | N12: =SUM(K9:M11) -> 77
B14: EXPECTED FREQUENCIES
D15: Independent Variable | I15: Need some help?
D16: Group 1 | E16: Group 2 | F16: Group 3 | G16: Total
B17: Dependent Variable | C17: Attribute 1 | D17: =L25 -> 6.61 | E17: =M25 -> 11.02 | F17: =N25 -> 6.37 | G17: =G9 -> 24
C18: Attribute 2 | D18: =L26 -> 11.85 | E18: =M26 -> 19.74 | F18: =N26 -> 11.41 | G18: =G10 -> 43
C19: Attribute 3 | D19: =L27 -> 8.54 | E19: =M27 -> 14.23 | F19: 8.22 | G19: =G11 -> 31
C20: Total | D20: =D12 -> 27 | E20: 45 | F20: =F12 -> 26 | G20: 98
B22: EXPECTED FREQUENCY CALCULATIONS
D23: Independent Variable
D24: Group 1 | E24: Group 2 | F24: Group 3 | G24: Total
B25: Dependent Variable | C25: Attribute 1 | D25: =CONCATENATE("(",G17," x ",D20,") ÷ ",$G$12," = ",L25) -> (24 x 27) ÷ 98 = 6.61 | E25: =CONCATENATE("(",G17," x ",E20,") ÷ ",$G$12," = ",M25) -> (24 x 45) ÷ 98 = 11.02 | F25: =CONCATENATE("(",G17," x ",F20,") ÷ ",$G$12," = ",N25) -> (24 x 26) ÷ 98 = 6.37 | G25: =G17 -> 24 | I25: =CONCATENATE("(",G17," x ",D20,") ÷ ",$G$12," = ?") -> (24 x 27) ÷ 98 = ? | J25: =CONCATENATE("(",G17," x ",E20,") ÷ ",$G$12," = ?") -> (24 x 45) ÷ 98 = ? | K25: =CONCATENATE("(",G17," x ",F20,") ÷ ",$G$12," = ?") -> (24 x 26) ÷ 98 = ? | L25: =ROUND((G17*D20)/$G$20,2) -> 6.61 | M25: =ROUND((G17*E20)/$G$20,2) -> 11.02 | N25: =ROUND((G17*F20)/$G$20,2) -> 6.37
C26: Attribute 2 | D26: =CONCATENATE("(",G18," x ",D20,") ÷ ",$G$12," = ",L26) -> (43 x 27) ÷ 98 = 11.85 | E26: =CONCATENATE("(",G18," x ",E20,") ÷ ",$G$12," = ",M26) -> (43 x 45) ÷ 98 = 19.74 | F26: =CONCATENATE("(",G18," x ",F20,") ÷ ",$G$12," = ",N26) -> (43 x 26) ÷ 98 = 11.41 | G26: =G18 -> 43 | I26: =CONCATENATE("(",G18," x ",D20,") ÷ ",$G$12," = ?") -> (43 x 27) ÷ 98 = ? | J26: =CONCATENATE("(",G18," x ",E20,") ÷ ",$G$12," = ?") -> (43 x 45) ÷ 98 = ? | K26: =CONCATENATE("(",G18," x ",F20,") ÷ ",$G$12," = ?") -> (43 x 26) ÷ 98 = ? | L26: =ROUND((G18*D20)/$G$20,2) -> 11.85 | M26: =ROUND((G18*E20)/$G$20,2) -> 19.74 | N26: =ROUND((G18*F20)/$G$20,2) -> 11.41
C27: Attribute 3 | D27: =CONCATENATE("(",G19," x ",D20,") ÷ ",$G$12," = ",L27) -> (31 x 27) ÷ 98 = 8.54 | E27: =CONCATENATE("(",G19," x ",E20,") ÷ ",$G$12," = ",M27) -> (31 x 45) ÷ 98 = 14.23 | F27: =CONCATENATE("(",G19," x ",F20,") ÷ ",$G$12," = ",N27) -> (31 x 26) ÷ 98 = 8.22 | G27: =G19 -> 31 | I27: =CONCATENATE("(",G19," x ",D20,") ÷ ",$G$12," = ?") -> (31 x 27) ÷ 98 = ? | J27: =CONCATENATE("(",G19," x ",E20,") ÷ ",$G$12," = ?") -> (31 x 45) ÷ 98 = ? | K27: =CONCATENATE("(",G19," x ",F20,") ÷ ",$G$12," = ?") -> (31 x 26) ÷ 98 = ? | L27: =ROUND((G19*D20)/$G$20,2) -> 8.54 | M27: =ROUND((G19*E20)/$G$20,2) -> 14.23 | N27: =ROUND((G19*F20)/$G$20,2) -> 8.22
C28: Total | D28: =D20 -> 27 | E28: 45 | F28: =F20 -> 26 | G28: =G20 -> 98
B30: CHI-SQUARE STATISTIC CALCULATIONS
B31: Cell | D31: Observed | E31: Expected | F31: Observed-Expected | H31: (Observed-Expected)2 | J31: (Observed-Expected)2 ÷ Expected
B32: Group 1, Attribute 1 | D32: =D9 -> 18 | E32: =L25 -> 6.61 | F32: =CONCATENATE(D32," - ",E32," = ",M32) -> 18 - 6.61 = 11.39 | H32: =CONCATENATE(M32," x ",M32," = ", N32) -> 11.39 x 11.39 = 129.73 | J32: =CONCATENATE(N32, " ÷ ",E32," = ",O32) -> 129.73 ÷ 6.61 = 19.63 | M32: =ROUND(D32-E32,2) -> 11.39 | N32: =(ROUND(M32*M32,2)) -> 129.73 | O32: =ROUND(N32/E32,2) -> 19.63
B33: Group 1, Attribute 2 | D33: =D10 -> 6 | E33: =L26 -> 11.85 | F33: =CONCATENATE(D33," - ",E33," = ",M33) -> 6 - 11.85 = -5.85 | H33: =CONCATENATE(M33," x ",M33," = ", N33) -> -5.85 x -5.85 = 34.22 | J33: =CONCATENATE(N33, " ÷ ",E33," = ",O33) -> 34.22 ÷ 11.85 = 2.89 | M33: =ROUND(D33-E33,2) -> -5.85 | N33: =(ROUND(M33*M33,2)) -> 34.22 | O33: =ROUND(N33/E33,2) -> 2.89
B34: Group 1, Attribute 3 | D34: 3 | E34: 8.54 | F34: 3 - 8.54 = -5.54 | H34: -5.54 x -5.54 = 30.69 | J34: 30.69 ÷ 8.54 = 3.59 | M34: -5.54 | N34: 30.69 | O34: 3.59
B35: Group 2, Attribute 1 | D35: =E9 -> 5 | E35: =M25 -> 11.02 | F35: 5 - 11.02 = -6.02 | H35: -6.02 x -6.02 = 36.24 | J35: 36.24 ÷ 11.02 = 3.29 | M35: -6.02 | N35: 36.24 | O35: 3.29
B36: Group 2, Attribute 2 | D36: =E10 -> 20 | E36: =M26 -> 19.74 | F36: 20 - 19.74 = 0.26 | H36: 0.26 x 0.26 = 0.07 | J36: 0.07 ÷ 19.74 = 0 | M36: 0.26 | N36: 0.07 | O36: 0
B37: Group 2, Attribute 3 | D37: =E11 -> 20 | E37: =M27 -> 14.23 | F37: 20 - 14.23 = 5.77 | H37: 5.77 x 5.77 = 33.29 | J37: 33.29 ÷ 14.23 = 2.34 | M37: 5.77 | N37: 33.29 | O37: 2.34
B38: Group 3, Attribute 1 | D38: =F9 -> 1 | E38: =N25 -> 6.37 | F38: 1 - 6.37 = -5.37 | H38: -5.37 x -5.37 = 28.84 | J38: 28.84 ÷ 6.37 = 4.53 | M38: -5.37 | N38: 28.84 | O38: 4.53
B39: Group 3, Attribute 2 | D39: =F10 -> 17 | E39: =N26 -> 11.41 | F39: 17 - 11.41 = 5.59 | H39: 5.59 x 5.59 = 31.25 | J39: 31.25 ÷ 11.41 = 2.74 | M39: 5.59 | N39: 31.25 | O39: 2.74
B40: Group 3, Attribute 3 | D40: 8 | E40: 8.22 | F40: 8 - 8.22 = -0.22 | H40: -0.22 x -0.22 = 0.05 | J40: 0.05 ÷ 8.22 = 0.01 | M40: -0.22 | N40: 0.05 | O40: 0.01
J41: Column Sum (χ2) | L41: =CONCATENATE("'= ",O41) -> '= 39.02 | O41: =SUM(O32:O40) -> 39.02
D43: =D32 -> 18 | E43: =E32 -> 6.61 | F43: =CONCATENATE(D32," - ",E32," = ?") -> 18 - 6.61 = ? | H43: =CONCATENATE(M32," x ",M32," = ?") -> 11.39 x 11.39 = ? | J43: =CONCATENATE(N32, " ÷ ",E32," = ?") -> 129.73 ÷ 6.61 = ?
D44: =D33 -> 6 | E44: 11.85 | F44: =CONCATENATE(D33," - ",E33," = ?") -> 6 - 11.85 = ? | H44: =CONCATENATE(M33," x ",M33," = ?") -> -5.85 x -5.85 = ? | J44: =CONCATENATE(N33, " ÷ ",E33," = ?") -> 34.22 ÷ 11.85 = ?
D45: 3 | E45: 8.54 | F45: 3 - 8.54 = ? | H45: -5.54 x -5.54 = ? | J45: 30.69 ÷ 8.54 = ?
D46: 5 | E46: 11.02 | F46: 5 - 11.02 = ? | H46: -6.02 x -6.02 = ? | J46: 36.24 ÷ 11.02 = ?
D47: 20 | E47: 19.74 | F47: 20 - 19.74 = ? | H47: 0.26 x 0.26 = ? | J47: 0.07 ÷ 19.74 = ?
D48: 20 | E48: 14.23 | F48: 20 - 14.23 = ? | H48: 5.77 x 5.77 = ? | J48: 33.29 ÷ 14.23 = ?
D49: 1 | E49: 6.37 | F49: 1 - 6.37 = ? | H49: -5.37 x -5.37 = ? | J49: 28.84 ÷ 6.37 = ?
D50: 17 | E50: 11.41 | F50: 17 - 11.41 = ? | H50: 5.59 x 5.59 = ? | J50: 31.25 ÷ 11.41 = ?
D51: 8 | E51: 8.22 | F51: 8 - 8.22 = ? | H51: -0.22 x -0.22 = ? | J51: 0.05 ÷ 8.22 = ?

Sheet Phi-A (hidden)
B1: PRACTICE CALCULATING PHI
B6: OBSERVED FREQUENCIES | H6: Chi-square statistic | I6: =F25 -> 1.8
D7: Independent Variable | H7: Phi | I7: =E17 -> 0.22
D8: Group 1 | E8: Group 2 | F8: Total
B9: Dependent Variable | C9: Attribute 1 | D9: 10 | E9: 12 | F9: 22 | H9: Need some help? | K9: =RANDBETWEEN(1,20) -> 15 | L9: =RANDBETWEEN(1,20) -> 16 | M9: =SUM(K9:L9) -> 31
C10: Attribute 2 | D10: 12 | E10: 6 | F10: 18 | K10: =RANDBETWEEN(1,20) -> 2 | L10: =RANDBETWEEN(1,20) -> 15 | M10: =SUM(K10:L10) -> 17
C11: Total | D11: 22 | E11: 18 | F11: 40 | K11: =SUM(K9:K10) -> 17 | L11: =SUM(L9:L10) -> 31 | M11: =SUM(K9:L10) -> 48
B13: PHI CALCULATIONS
B14: Phi
C15: =CONCATENATE("'= square root of (",F25," ÷ ",F11,")") -> '= square root of (1.8 ÷ 40)
C16: =CONCATENATE("'= square root of ",E16) -> '= square root of 0.05 | E16: =ROUND(F25/F11,2) -> 0.05
C17: =CONCATENATE("'= ",E17) -> '= 0.22 | E17: =ROUND(SQRT(E16),2) -> 0.22
B21: =D9 -> 10 | C21: =ROUND((F9*D11)/F11,2) -> 12.1 | D21: =ROUND(B21-C21,2) -> -2.1 | E21: =ROUND(D21*D21,2) -> 4.41 | F21: =ROUND(E21/C21,2) -> 0.36
B22: =D10 -> 12 | C22: =ROUND((F10*D11)/F11,2) -> 9.9 | D22: =ROUND(B22-C22,2) -> 2.1 | E22: =ROUND(D22*D22,2) -> 4.41 | F22: =ROUND(E22/C22,2) -> 0.45
B23: =E9 -> 12 | C23: =ROUND((F9*E11)/F11,2) -> 9.9 | D23: 2.1 | E23: 4.41 | F23: 0.45
B24: =E10 -> 6 | C24: =ROUND((F10*E11)/F11,2) -> 8.1 | D24: -2.1 | E24: 4.41 | F24: 0.54
F25: =SUM(F21:F24) -> 1.8

Sheet Cramér's V-A (hidden)
B1: PRACTICE CALCULATING CRAMÉR'S V
B6: OBSERVED FREQUENCIES | I6: Chi-square statistic | J6: =F32 -> 14.86
D7: Independent Variable | I7: Cramér's V | J7: =E20 -> 0.26
D8: Group 1 | E8: Group 2 | F8: Group 3 | G8: Total
B9: Dependent Variable | C9: Attribute 1 | D9: 1 | E9: 13 | F9: 7 | G9: 21 | I9: Need some help? | K9: =RANDBETWEEN(1,20) -> 1 | L9: =RANDBETWEEN(1,20) -> 11 | M9: =RANDBETWEEN(1,20) -> 3 | N9: =SUM(K9:M9) -> 15
C10: Attribute 2 | D10: 13 | E10: 18 | F10: 5 | G10: 36 | K10: =RANDBETWEEN(1,20) -> 10 | L10: =RANDBETWEEN(1,20) -> 2 | M10: 1 | N10: =SUM(K10:M10) -> 13
C11: Attribute 3 | D11: 20 | E11: 13 | F11: 16 | G11: 49 | K11: 19 | L11: 10 | M11: 20 | N11: =SUM(K11:M11) -> 49
C12: Total | D12: 34 | E12: 44 | F12: 28 | G12: 106 | K12: =SUM(K9:K11) -> 30 | L12: =SUM(L9:L11) -> 23 | M12: =SUM(M9:M11) -> 24 | N12: =SUM(K9:M11) -> 77
B14: CRAMÉR'S V CALCULATIONS
B15: Cramér's V
C16: =CONCATENATE("'= square root of {",F32," ÷ [",G12," x (3-1)]}") -> '= square root of {14.86 ÷ [106 x (3-1)]}
C17: =CONCATENATE("'= square root of [",F32," ÷ (",G12," x 2)]") -> '= square root of [14.86 ÷ (106 x 2)]
C18: =CONCATENATE("'= square root of (",F32," ÷ ",E18,")") -> '= square root of (14.86 ÷ 212) | E18: =G12*2 -> 212
C19: =CONCATENATE("'= square root of ",E19) -> '= square root of 0.07 | E19: =ROUND(F32/E18,2) -> 0.07
C20: =CONCATENATE("'= ",E20) -> '= 0.26 | E20: =ROUND(SQRT(E19),2) -> 0.26
B23: =D9 -> 1 | C23: =ROUND((G9*$D$12)/$G$12,2) -> 6.74 | D23: =ROUND(B23-C23,2) -> -5.74 | E23: =ROUND(D23*D23,2) -> 32.95 | F23: =ROUND(E23/C23,2) -> 4.89
B24: =D10 -> 13 | C24: =ROUND((G10*$D$12)/$G$12,2) -> 11.55 | D24: =ROUND(B24-C24,2) -> 1.45 | E24: =ROUND(D24*D24,2) -> 2.1 | F24: =ROUND(E24/C24,2) -> 0.18
B25: =D11 -> 20 | C25: =ROUND((G11*$D$12)/$G$12,2) -> 15.72 | D25: 4.28 | E25: 18.32 | F25: 1.17
B26: =E9 -> 13 | C26: =ROUND((G9*$E$12)/$G$12,2) -> 8.72 | D26: 4.28 | E26: 18.32 | F26: 2.1
B27: =E10 -> 18 | C27: =ROUND((G10*$E$12)/$G$12,2) -> 14.94 | D27: 3.06 | E27: 9.36 | F27: 0.63
B28: 13 | C28: 20.34 | D28: -7.34 | E28: 53.88 | F28: 2.65
B29: =F9 -> 7 | C29: =ROUND((G9*$F$12)/$G$12,2) -> 5.55 | D29: 1.45 | E29: 2.1 | F29: 0.38
B30: =F10 -> 5 | C30: =ROUND((G10*$F$12)/$G$12,2) -> 9.51 | D30: -4.51 | E30: 20.34 | F30: 2.14
B31: 16 | C31: 12.94 | D31: 3.06 | E31: 9.36 | F31: 0.72
F32: =SUM(F23:F31) -> 14.86
